fUSD/lending_fUSD_20240114
["ID","MTS","AMOUNT","RATE_DAILY","PERIOD"]
[311623838,1705265568866,-500.0,0.00032328,2]
[311623839,1705265568875,-634.01,0.00032602,2]
[311623840,1705265568884,-729.66152739,0.00032999,2]
[311623841,1705265568893,-729.66152739,0.00032999,2]
[311623842,1705265568902,-729.66152739,0.00032999,2]
[311623843,1705265568911,-729.66152739,0.00032999,2]
[311623844,1705265568921,-729.66152739,0.00032999,2]
[311623845,1705265568930,-729.66152739,0.00032999,2]
[311623846,1705265568940,-729.66152739,0.00032999,2]
[311623847,1705265568949,-729.66152739,0.00032999,2]
[311623848,1705265568959,-729.66152739,0.00032999,2]
[311623849,1705265568969,-729.66152739,0.00032999,2]
[311623850,1705265568978,-729.66152739,0.00032999,2]
[311623851,1705265568987,-729.66152739,0.00032999,2]
[311623852,1705265568996,-729.66152739,0.00032999,2]
[311623853,1705265569006,-729.66152739,0.00032999,2]
[311623854,1705265569016,-729.66152739,0.00032999,2]
[311623855,1705265569027,-729.66152739,0.00032999,2]
[311623856,1705265569036,-729.66152739,0.00032999,2]
[311623857,1705265569045,-542.99192488,0.00032999,2]
[311623858,1705265569055,-729.66152739,0.00032999,2]
[311623859,1705265569064,-729.66152739,0.00032999,2]
[311623860,1705265569073,-729.66152739,0.00032999,2]
[311623861,1705265569083,-729.66152739,0.00032999,2]
[311623862,1705265569092,-729.66152739,0.00032999,2]
[311623863,1705265569102,-729.66152739,0.00032999,2]
[311623864,1705265569111,-1250.7187098,0.00033424,2]
[311623865,1705265569121,-1505.43,0.00033698,2]
[311623866,1705265569131,-1287.53,0.00033972,2]
[311623867,1705265569141,-1505.43,0.00033972,2]
[311623868,1705265569151,-229.37528665,0.00033999,4]
[311623869,1705265569160,-508.9909266,0.00033999,4]
[311623870,1705265569169,-500.0,0.00033999,4]
[311623871,1705265569178,-500.0,0.00033999,4]
[311623872,1705265569188,-500.0,0.00033999,4]
[311623873,1705265569198,-729.66152739,0.00033999,7]
[311623874,1705265569207,-729.66152739,0.00033999,7]
[311623875,1705265569216,-729.66152739,0.00033999,7]
[311623876,1705265569225,-325.79515493,0.00033999,7]
[311623877,1705265569235,-729.66152739,0.00033999,7]
[311623878,1705265569244,-729.66152739,0.00033999,7]
[311623879,1705265569253,-729.66152739,0.00033999,7]
[311623880,1705265569262,-729.66152739,0.00033999,7]
[311623881,1705265569271,-729.66152739,0.00033999,7]
[311623882,1705265569281,-729.66152739,0.00033999,7]
[311623883,1705265569291,-729.66152739,0.00033999,7]
[311623884,1705265569300,-729.66152739,0.00033999,7]
[311623885,1705265569310,-1287.53,0.00034246,2]
[311623886,1705265569319,-1505.43,0.00034246,2]
[311623887,1705265569328,-1287.53,0.0003452,2]
[311623888,1705265569337,-1505.43,0.0003452,2]
[311623889,1705265569347,-568.7294216,0.00034794,2]
[311623890,1705265569357,-2191.12,0.00034794,2]
[311623891,1705265569366,-1823.86,0.00034794,2]
[311623892,1705265569376,-566.33,0.00034794,2]
[311623893,1705265569385,-602.37,0.00034794,2]
[311623894,1705265569395,-651.64,0.00034794,2]
[311623895,1705265569405,-883.91,0.00034794,2]
[311623896,1705265569415,-2214.32,0.00034794,2]
[311623897,1705265569736,-14316.0,0.00034794,2]
[311623898,1705265569747,-1750.64,0.00034794,2]
[311623899,1705265569757,-875.93,0.00034794,2]
[311623900,1705265569766,-500.0,0.00034794,2]
[311623901,1705265569775,-596.16,0.00034794,2]
[311623902,1705265569790,-846.65,0.00034794,2]
[311623903,1705265569799,-753.89,0.00034794,2]
[311623904,1705265569808,-1849.03,0.00034794,2]
[311623905,1705265569818,-581.54233962,0.00034794,2]
[311623906,1705265569828,-1112.66,0.00034794,2]
[311623907,1705265569838,-1725.14,0.00034794,2]
[311623908,1705265569847,-796.33,0.00034794,2]
[311623909,1705265569856,-500.0,0.00034794,2]
[311623910,1705265569867,-808.86,0.00034794,2]
[311623911,1705265569877,-899.24,0.00034794,2]
[311623912,1705265569890,-1429.98,0.00034794,2]
[311623913,1705265569900,-500.0,0.00034794,2]
[311623914,1705265569910,-524.71,0.00034794,2]
[311623915,1705265569920,-1713.52,0.00034794,2]
[311623916,1705265569930,-1102.84,0.00034794,2]
[311623917,1705265569939,-1116.72,0.00034794,2]
[311623918,1705265569949,-2696.94,0.00034794,2]
[311623919,1705265569959,-500.0,0.00034794,2]
[311623920,1705265569969,-1618.96,0.00034794,2]
[311623921,1705265569980,-794.76,0.00034794,2]
[311623922,1705265569990,-500.0,0.00034794,2]
[311623923,1705265570000,-500.0,0.00034794,2]
[311623924,1705265570011,-724.53,0.00034794,2]
[311623925,1705265570021,-1597.13,0.00034794,2]
[311623926,1705265570031,-737.29,0.00034794,2]
[311623927,1705265570041,-622.57,0.00034794,2]
[311623928,1705265570051,-500.0,0.00034794,2]
[311623929,1705265570061,-1009.68,0.00034794,2]
[311623930,1705265570073,-640.35,0.00034794,2]
[311623931,1705265570084,-500.0,0.00034794,2]
[311623932,1705265570094,-1595.29,0.00034794,2]
[311623933,1705265570103,-500.0,0.00034794,2]
[311623934,1705265570113,-917.26,0.00034794,2]
[311623935,1705265570122,-565.13,0.00034794,2]
[311623936,1705265570132,-2100.41,0.00034794,2]
[311623937,1705265570142,-4300.16,0.00034794,2]
[311623938,1705265570152,-1007.56,0.00034794,2]
[311623939,1705265570161,-776.73,0.00034794,2]
[311623940,1705265570170,-535.60316902,0.00034794,2]
[311623941,1705265570180,-500.0,0.00034794,2]
[311623942,1705265570191,-933.45,0.00034794,2]
[311623943,1705265570200,-531.05,0.00034794,2]
[311623944,1705265570210,-1593.77,0.00034794,2]
[311623945,1705265570219,-720.02,0.00034794,2]
[311623946,1705265570228,-500.0,0.00034794,5]
[311623947,1705265570238,-500.0,0.00034794,2]
[311623948,1705265570247,-4742.8,0.00034794,2]
[311623949,1705265570257,-1573.4,0.00034794,2]
[311623950,1705265570267,-500.0,0.00034794,2]
[311623951,1705265570277,-500.0,0.00034794,2]
[311623952,1705265570288,-332.22,0.00034794,2]
[311623953,1705265570297,-3392.17,0.00034794,2]
[311623954,1705265570306,-3302.73,0.00034794,2]
[311623955,1705265570315,-755.87,0.00034794,2]
[311623956,1705265570325,-1145.63,0.00034794,2]
[311623957,1705265570334,-881.88,0.00034794,2]
[311623958,1705265570344,-3349.66,0.00034794,2]
[311623959,1705265570354,-699.61,0.00034794,2]
[311623960,1705265570363,-911.19,0.00034794,2]
[311623961,1705265570373,-500.0,0.00034794,2]
[311623962,1705265570384,-9373.54,0.00034794,2]
[311623963,1705265570394,-563.79,0.00034794,2]
[311623964,1705265570403,-1392.74,0.00034794,2]
[311623965,1705265570413,-562.79097158,0.00034794,2]
[311623966,1705265570422,-580.88,0.00034794,2]
[311623967,1705265570432,-1446.11,0.00034794,2]
[311623968,1705265570442,-9954.34,0.00034794,2]
[311623969,1705265570451,-1674.87,0.00034794,2]
[311623970,1705265570461,-2675.53,0.00034794,2]
[311623971,1705265570470,-609.69,0.00034794,2]
[311623972,1705265570480,-5600.69,0.00034794,2]
[311623973,1705265570489,-638.69,0.00034794,2]
[311623974,1705265570498,-541.21,0.00034794,2]
[311623975,1705265570508,-830.84,0.00034794,2]
[311623976,1705265570518,-2246.95,0.00034794,2]
[311623977,1705265570527,-1402.19,0.00034794,2]
[311623978,1705265570536,-924.51,0.00034794,2]
[311623979,1705265570546,-3335.08,0.00034794,2]
[311623980,1705265570556,-10595.33,0.00034794,2]
[311623981,1705265570565,-836.16,0.00034794,2]
[311623982,1705265570575,-500.0,0.00034794,2]
[311623983,1705265570585,-596.2552702,0.00034794,2]
[311623984,1705265570594,-646.01,0.00034794,2]
[311623985,1705265570604,-500.0,0.00034794,2]
[311623986,1705265570614,-500.0,0.00034794,2]
[311623987,1705265570623,-558.11,0.00034794,2]
[311623988,1705265570633,-500.0,0.00034794,2]
[311623989,1705265570642,-500.0,0.00034794,2]
[311623990,1705265570651,-1637.96,0.00034794,2]
[311623991,1705265570661,-3225.32,0.00034794,2]
[311623992,1705265570671,-3401.5,0.00034794,2]
[311623993,1705265570680,-699.52,0.00034794,2]
[311623994,1705265570691,-1658.41,0.00034794,2]
[311623995,1705265570700,-500.0,0.00034794,2]
[311623996,1705265570710,-898.47,0.00034794,2]
[311623997,1705265570719,-747.38,0.00034794,2]
[311623998,1705265570729,-502.0,0.00034794,2]
[311623999,1705265570739,-3294.26,0.00034794,2]
[311624000,1705265570748,-781.12,0.00034794,2]
[311624001,1705265570758,-2934.21,0.00034794,2]
[311624002,1705265570768,-28330.08,0.00034794,2]
[311624003,1705265570777,-1324.02,0.00034794,2]
[311624004,1705265570791,-915.45,0.00034794,2]
[311624005,1705265570801,-1385.96,0.00034794,2]
[311624006,1705265570810,-509.43,0.00034794,2]
[311624007,1705265570820,-2258.81,0.00034794,2]
[311624008,1705265570829,-993.95,0.00034794,2]
[311624009,1705265570838,-630.07,0.00034794,2]
[311624010,1705265570848,-663.38,0.00034794,2]
[311624011,1705265570857,-534.75,0.00034794,2]
[311624012,1705265570867,-7238.69,0.00034794,2]
[311624013,1705265570877,-2077.72,0.00034794,2]
[311624014,1705265570887,-500.0,0.00034794,2]
[311624015,1705265570897,-1376.21,0.00034794,2]
[311624016,1705265570906,-1332.9,0.00034794,2]
[311624017,1705265570916,-500.0,0.00034794,2]
[311624018,1705265570926,-1108.32,0.00034794,2]
[311624019,1705265570937,-560.24,0.00034794,2]
[311624020,1705265570947,-691.92,0.00034794,2]
[311624021,1705265570956,-500.0,0.00034794,2]
[311624022,1705265570966,-644.63,0.00034794,2]
[311624023,1705265570976,-917.54,0.00034794,2]
[311624024,1705265570986,-226.25,0.00034794,2]
[311624025,1705265570996,-4169.87,0.00034794,2]
[311624026,1705265571005,-503.48,0.00034794,2]
[311624027,1705265571015,-810.05,0.00034794,2]
[311624028,1705265571024,-799.56,0.00034794,2]
[311624029,1705265571034,-277.92369788,0.00034794,2]
[311624030,1705265571043,-767.29,0.00034794,2]
[311624031,1705265571053,-907.45,0.00034794,2]
[311624032,1705265571062,-733.07,0.00034794,2]
[311624033,1705265571071,-500.0,0.00034794,2]
[311624034,1705265571081,-6057.77,0.00034794,2]
[311624035,1705265571090,-1447.4,0.00034794,2]
[311624036,1705265571100,-1557.23,0.00034794,2]
[311624037,1705265571109,-1520.88,0.00034794,2]
[311624038,1705265571119,-1561.7,0.00034794,2]
[311624039,1705265571128,-2650.58,0.00034794,2]
[311624040,1705265571138,-16510.87,0.00034794,2]
[311624041,1705265571147,-575.26189109,0.00034794,2]
[311624042,1705265571157,-587.88,0.00034794,2]
[311624043,1705265571167,-1302.74,0.00034794,2]
[311624044,1705265571177,-3126.96,0.00034794,2]
[311624045,1705265571189,-1648.36,0.00034794,2]
[311624046,1705265571198,-435.79826681,0.00034794,2]
[311624047,1705265571208,-1892.55,0.00034794,2]
[311624048,1705265571218,-500.0,0.00034794,2]
[311624049,1705265571227,-3105.59,0.00034794,2]
[311624050,1705265571237,-8950.09,0.00034794,2]
[311624051,1705265571246,-1582.78,0.00034794,2]
[311624052,1705265571256,-1119.58,0.00034794,2]
[311624053,1705265571266,-810.88,0.00034794,2]
[311624054,1705265571275,-925.46,0.00034794,2]
[311624055,1705265571285,-1362.22,0.00034794,2]
[311624056,1705265571295,-1419.16,0.00034794,2]
[311624057,1705265571305,-840.38,0.00034794,2]
[311624058,1705265571314,-1153.75,0.00034794,2]
[311624059,1705265571324,-176.29800562,0.00034794,2]
[311624060,1705265571333,-707.1,0.00034794,2]
[311624061,1705265571343,-965.13,0.00034794,2]
[311624062,1705265571353,-500.0,0.00034794,2]
[311624063,1705265571363,-643.91966973,0.00034794,2]
[311624064,1705265571373,-736.07,0.00034794,2]
[311624065,1705265571382,-1354.92,0.00034794,2]
[311624066,1705265571392,-622.53,0.00034794,2]
[311624067,1705265571401,-836.71,0.00034794,2]
[311624068,1705265571411,-5875.67,0.00034794,2]
[311624069,1705265571421,-784.6,0.00034794,2]
[311624070,1705265571430,-3535.86,0.00034794,2]
[311624071,1705265571441,-1339.45,0.00034794,2]
[311624072,1705265571451,-726.02,0.00034794,2]
[311624073,1705265571461,-2000.77,0.00034794,2]
[311624074,1705265571471,-772.02,0.00034794,2]
[311624075,1705265571481,-4196.76,0.00034794,2]
[311624076,1705265571491,-874.57,0.00034794,2]
[311624077,1705265571501,-1070.23,0.00034794,2]
[311624078,1705265571510,-563.09,0.00034794,2]
[311624079,1705265571520,-500.0,0.00034794,2]
[311624080,1705265571530,-869.2,0.00034794,2]
[311624081,1705265571539,-803.67,0.00034794,2]
[311624082,1705265571549,-500.0,0.00034794,2]
[311624083,1705265571560,-581.19,0.00034794,2]
[311624084,1705265571569,-2946.84,0.00034794,2]
[311624085,1705265571580,-969.9,0.00034794,2]
[311624086,1705265571590,-711.01,0.00034794,2]
[311624087,1705265571600,-552.27,0.00034794,2]
[311624088,1705265571609,-1464.74,0.00034794,2]
[311624089,1705265571619,-633.03,0.00034794,2]
[311624090,1705265571628,-1643.12,0.00034794,2]
[311624091,1705265571637,-1109.23,0.00034794,2]
[311624092,1705265571646,-1928.32,0.00034794,2]
[311624093,1705265571656,-1980.27,0.00034794,2]
[311624094,1705265571665,-503.28,0.00034794,2]
[311624095,1705265571674,-1413.08,0.00034794,2]
[311624096,1705265571684,-500.0,0.00034794,2]
[311624097,1705265571694,-532.18,0.00034794,2]
[311624098,1705265571703,-710.77,0.00034794,2]
[311624099,1705265571713,-560.65,0.00034794,2]
[311624100,1705265571722,-1886.92,0.00034794,2]
[311624101,1705265571731,-500.0,0.00034794,2]
[311624102,1705265571740,-848.62,0.00034794,2]
[311624103,1705265571750,-610.95,0.00034794,2]
[311624104,1705265571759,-4590.19,0.00034794,2]
[311624105,1705265571768,-567.58,0.00034794,2]
[311624106,1705265571778,-500.0,0.00034794,2]
[311624107,1705265571791,-1287.53,0.00034794,2]
[311624108,1705265571800,-998.4426,0.00034799,2]
[311624109,1705265571810,-700.0,0.0003487,2]
[311624110,1705265571819,-400.0,0.0003487,2]
[311624111,1705265571830,-408.24,0.00034893,2]
[311624112,1705265571839,-314.34,0.00034893,2]
[311624113,1705265571849,-587.61,0.00034893,2]
[311624114,1705265571858,-314.05,0.00034893,2]
[311624115,1705265571869,-418.07,0.00034893,2]
[311624116,1705265571879,-4324.33642334,0.00034898,2]
[311624117,1705265571889,-1831.45598194,0.00034898,2]
[311624118,1705265571899,-7473.60443344,0.00034898,2]
[311624119,1705265571908,-4718.14201091,0.00034898,2]
[311624120,1705265571918,-329216.17510887,0.000349,5]
[311624121,1705265572775,-150.0,0.000226,2]
[311624122,1705265572798,-401.38,0.000226,2]
[311624123,1705265572808,-408.24,0.000226,2]
[311624124,1705265572817,-795.34767108,0.000273,2]
[311624125,1705265572827,-500.0,0.00030136,2]
[311624126,1705265572836,-546.75,0.00030136,2]
[311624127,1705265572846,-500.0,0.00030136,2]
[311624128,1705265572855,-500.0,0.00030136,2]
[311624129,1705265572865,-500.0,0.00030136,2]
[311624130,1705265572874,-546.75,0.0003041,2]
[311624131,1705265572883,-500.0,0.0003041,2]
[311624132,1705265572892,-500.0,0.0003041,2]
[311624133,1705265572901,-500.0,0.0003041,2]
[311624134,1705265572910,-500.0,0.0003041,2]
[311624135,1705265572919,-500.0,0.00030684,2]
[311624136,1705265572928,-500.0,0.00030684,2]
[311624137,1705265572938,-546.75,0.00030684,2]
[311624138,1705265572947,-500.0,0.00030684,2]
[311624139,1705265572956,-500.0,0.00030684,2]
[311624140,1705265572966,-500.0,0.00030958,2]
[311624141,1705265572976,-546.75,0.00030958,2]
[311624142,1705265572984,-593.22,0.00030958,2]
[311624143,1705265572994,-500.0,0.00031232,2]
[311624144,1705265573003,-546.75,0.00031232,2]
[311624145,1705265573012,-500.0,0.00031506,2]
[311624146,1705265573021,-255.56,0.0003178,2]
[311624147,1705265573031,-500.0,0.00032328,2]
[311624148,1705265573040,-314.34,0.00032519,2]
[311624149,1705265573050,-357.25,0.00032602,2]
[311624150,1705265573059,-729.66152739,0.00032999,2]
[311624151,1705265573069,-729.66152739,0.00033999,7]
[311624152,1705265573078,-729.66152739,0.00033999,7]
[311624153,1705265573088,-729.66152739,0.00033999,7]
[311624154,1705265573097,-729.66152739,0.00033999,7]
[311624155,1705265573106,-729.66152739,0.00033999,7]
[311624156,1705265573116,-729.66152739,0.00033999,7]
[311624157,1705265573125,-729.66152739,0.00033999,7]
[311624158,1705265573135,-729.66152739,0.00033999,7]
[311624159,1705265573144,-729.66152739,0.00033999,7]
[311624160,1705265573153,-1505.43,0.00034794,2]
[311624161,1705265573162,-10779.47605651,0.000349,5]
[311624162,1705265573362,-500.0,0.00030136,2]
[311624163,1705265573372,-500.0,0.00030136,2]
[311624164,1705265573381,-500.0,0.00030958,2]
[311624165,1705265573390,-546.75,0.00031506,2]
[311624166,1705265573400,-25647.44702432,0.000349,5]
[311624167,1705265573423,-4655.96900554,0.000349,5]
[311624168,1705265580412,418.66897481,0.00022078,2]
[311624169,1705265580451,672.83258779,0.00022078,2]
[311624170,1705265581850,219.99906844,0.00022002,2]
[311624171,1705265587310,155.24194201,0.00020547,2]
[311624172,1705265587549,205.0,0.00021337,2]
[311624173,1705265591320,15445.0131,0.00022002,2]
[311624174,1705265592687,1000.0,0.00022002,2]
[311624175,1705265592830,245000.0,0.00022002,2]
[311624176,1705265592966,2387.27276782,0.00020546,2]
[311624177,1705265594926,173.80086289,0.00022001,2]
[311624178,1705265595459,425.61985343,0.0001958,2]
[311624179,1705265595503,155.0,0.00022,2]
[311624180,1705265596782,155.0,0.0002178,2]
[311624181,1705265597547,161.17692113,0.0002178,2]
[311624182,1705265598594,155.0,0.00022,2]
[311624183,1705265598653,168.68,0.0002561,120]
[311624184,1705265598933,100000.0,0.00022002,2]
[311624185,1705265611819,-8452.14552393,0.000225,2]
[311624186,1705265611840,-733.98,0.000225,2]
[311624187,1705265611862,-185.64383096,0.00022502,2]
[311624188,1705265611883,-260.45790822,0.00022602,2]
[311624189,1705265611905,-155.0,0.0002283,2]
[311624190,1705265611925,-234.70920108,0.0002283,2]
[311624191,1705265611945,-465.0,0.0002283,2]
[311624192,1705265611965,-1415.24839978,0.00022831,2]
[311624193,1705265611987,-15697.81513603,0.00022831,2]
[311624194,1705265613642,205.0,0.00020337,2]
[311624198,1705265701291,1000.0,0.00021821,2]
[311624200,1705265728045,392.36,0.0002181,2]
[311624201,1705265728357,392.36,0.00021924,2]
[311624202,1705265728754,392.36,0.00022039,2]
[311624206,1705265784733,218.23,0.00021709,2]
[311624219,1705265949836,916.38,0.00021659,2]
[311624220,1705265955296,176.17,0.0002198,2]
[311624221,1705265965155,500.0,0.0002198,2]
[311624222,1705265973341,178.36,0.00021856,2]
[311624223,1705265973472,507.32,0.00019722,2]
[311624224,1705265973695,507.32,0.00021986,2]
[311624225,1705266056273,168.04,0.0002161,2]
[311624226,1705266132535,200.0,0.00021553,2]
[311624227,1705266156331,155.31,0.00021555,2]
[311624228,1705266156723,155.31,0.00021699,2]
[311624229,1705266157207,155.31,0.00021843,2]
[311624230,1705266157269,155.31,0.00021986,2]
[311624231,1705266188877,258.33493005,0.00021979,2]
[311624232,1705266192836,184.34314452,0.00022057,2]
[311624233,1705266258407,150.0,0.00021979,2]
[311624234,1705266285493,152.05,0.00021668,2]
[311624235,1705266285718,152.05,0.00021749,2]
[311624236,1705266285923,152.05,0.00021829,2]
[311624237,1705266286169,152.05,0.0002191,2]
[311624238,1705266286574,152.05,0.0002199,2]
[311624239,1705266286796,152.05,0.00022071,2]
[311624240,1705266316688,2000.0,0.00021503,2]
[311624241,1705266321196,150.0,0.0002198,2]
[311624242,1705266333334,225.0,0.00021503,2]
[311624243,1705266334320,205.0,0.00021642,2]
[311624244,1705266416325,2370.84,0.00021507,2]
[311624245,1705266420320,513.8,0.00019589,2]
[311624246,1705266420608,513.8,0.00021853,2]
[311624247,1705266427113,-184.34314447,0.000221,2]
[311624248,1705266427137,-141.72579299,0.0002213,2]
[311624249,1705266457720,917.17,0.00021513,2]
[311624250,1705266486570,253.90263006,0.00021513,2]
[311624251,1705266569609,176.17,0.0002198,2]
[311624252,1705266571492,840.0,0.00021396,2]
[311624253,1705266580519,500.0,0.0002198,2]
[311624261,1705266632224,-13.58420701,0.0002213,2]
[311624263,1705266632234,-184.34314447,0.00022144,2]
[311624264,1705266632243,-152.05,0.00022152,2]
[311624266,1705266632253,-387.53117307,0.00022154,2]
[311624269,1705266632264,-4.82882693,0.00022154,2]
[311624271,1705266632274,-721.94,0.00022155,2]
[311624272,1705266632283,-721.35,0.00022155,2]
[311624274,1705266632295,-736.2,0.00022155,2]
[311624276,1705266632305,-731.49,0.00022156,2]
[311624277,1705266632314,-17.73637284,0.00022157,2]
[311624278,1705266632329,-717.74362716,0.00022157,2]
[311624279,1705266632338,-150.99,0.00022157,2]
[311624280,1705266632347,-594.82033612,0.00022157,2]
[311624281,1705266632358,-562.34159793,0.00022157,2]
[311624282,1705266632372,-287.75294492,0.00022157,2]
[311624283,1705266632385,-4.58512103,0.00022157,2]
[311624284,1705266632394,-330.41837935,0.00022158,2]
[311624285,1705266632407,-2166.67834481,0.00022158,2]
[311624286,1705266632418,-1627.2328,0.00022158,2]
[311624287,1705266632429,-2303.14047584,0.00022158,2]
[311624288,1705266632438,-727.12,0.00022158,2]
[311624289,1705266632447,-728.16,0.00022161,2]
[311624290,1705266632456,-726.31,0.00022164,2]
[311624291,1705266632465,-727.61,0.0002217,2]
[311624292,1705266632475,-718.46,0.00022178,2]
[311624293,1705266632484,-184.34314447,0.00022187,2]
[311624294,1705266632493,-715.25,0.00022191,2]
[311624295,1705266632503,-387.29,0.00022191,2]
[311624296,1705266632512,-735.07,0.00022211,2]
[311624298,1705266632522,-184.34314447,0.0002223,2]
[311624300,1705266632531,-152.05,0.00022232,2]
[311624301,1705266632541,-392.36,0.00022269,2]
[311624302,1705266632551,-184.34314447,0.00022274,2]
[311624303,1705266632561,-155.31,0.00022274,2]
[311624304,1705266632570,-152.05,0.00022313,2]
[311624306,1705266632580,-184.34314447,0.00022317,2]
[311624308,1705266632589,-184.34314447,0.0002236,2]
[311624310,1705266632598,-392.36,0.00022384,2]
[311624312,1705266632607,-152.05,0.00022394,2]
[311624314,1705266632616,-280.62392143,0.000224,2]
[311624316,1705266632625,-184.34314447,0.00022404,2]
[311624318,1705266632634,-155.31,0.00022418,2]
[311624320,1705266632644,-184.34314447,0.00022447,2]
[311624322,1705266632653,-152.05,0.00022474,2]
[311624324,1705266632662,-184.34314447,0.0002249,2]
[311624326,1705266632671,-917.17,0.00022492,2]
[311624327,1705266632680,-392.36,0.00022498,2]
[311624328,1705266632689,-176.17,0.00022528,2]
[311624329,1705266632698,-500.0,0.00022528,2]
[311624330,1705266632707,-184.34314447,0.00022533,2]
[311624331,1705266632716,-322.84296619,0.00022536,2]
[311624332,1705266632725,-1834.23574581,0.00022536,2]
[311624333,1705266632735,-720.95,0.00022539,2]
[311624334,1705266632748,-499.99,0.00022543,2]
[311624335,1705266632757,-712.47,0.00022543,2]
[311624336,1705266632767,-722.26,0.00022547,2]
[311624337,1705266632776,-724.22,0.00022554,2]
[311624338,1705266632785,-152.05,0.00022555,2]
[311624339,1705266632795,-155.31,0.00022561,2]
[311624340,1705266632805,-184.34314447,0.00022577,2]
[311624341,1705266632814,-392.36,0.00022613,2]
[311624342,1705266632823,-184.34314447,0.0002262,2]
[311624343,1705266632833,-107155.96388927,0.00022632,2]
[311624344,1705266632847,-358.97557567,0.00022632,2]
[311624345,1705266632859,-182153.73153506,0.00022632,2]
[311624346,1705266632868,-152.05,0.00022636,2]
[311624347,1705266632878,-184.34314447,0.00022663,2]
[311624348,1705266632887,-155.31,0.00022705,2]
[311624349,1705266632896,-184.34314447,0.00022707,2]
[311624350,1705266632905,-152.05,0.00022716,2]
[311624351,1705266632915,-392.36,0.00022728,2]
[311624352,1705266632925,-1707.23061659,0.0002273,2]
[311624353,1705266632935,-6433.71502651,0.0002273,2]
[311624354,1705266632945,-2943.97850092,0.0002273,2]
[311624355,1705266632954,-223.7152768,0.0002273,2]
[311624356,1705266632963,-158.48029498,0.0002273,2]
[311624357,1705266632972,-4472.75019133,0.00022731,2]
[311624358,1705266632981,-53449.39144959,0.00022732,2]
[311624359,1705266633013,-1069.12322619,0.00022732,2]
[311624360,1705266633025,-267.96954897,0.00022732,2]
[311624361,1705266633039,-271.49471219,0.00022732,2]
[311624362,1705266633055,-12136.64736306,0.00022732,2]
[311624363,1705266633063,-795.882,0.00022732,2]
[311624364,1705266633073,-485.2898,0.00022732,2]
[311624365,1705266633083,-177.5299,0.00022732,2]
[311624366,1705266633092,-11621.26210128,0.0002275,2]
[311624367,1705266633103,-467.73789872,0.0002275,2]
[311624368,1705266633112,-184.34314447,0.0002275,2]
[311624369,1705266633121,-155.0,0.00022766,2]
[311624370,1705266633131,-184.34314447,0.00022793,2]
[311624371,1705266633141,-152.05,0.00022797,2]
[311624372,1705266633151,-500.0,0.00022814,2]
[311624373,1705266633162,-200.0,0.00022814,2]
[311624374,1705266633171,-313.22486402,0.00022822,2]
[311624375,1705266633180,-732.29,0.00022829,2]
[311624376,1705266633189,-157.00749302,0.0002283,2]
[311624377,1705266633198,-9425.0034553,0.00022831,2]
[311624378,1705266633223,-1400.0,0.00022831,2]
[311624379,1705266633235,-3325.42039862,0.00022831,2]
[311624380,1705266638164,-939.44753923,0.00022831,2]
[311624381,1705266638175,-4060.63298702,0.00022831,2]
[311624382,1705266638227,-36549.86027154,0.00022831,2]
[311624383,1705266638237,-93732.08490768,0.00022832,2]